bitfinex/quotes_SOLUSD_20240725
["timestamp","ask_amount","ask_price","bid_price","bid_amount"]
[1721893511652,8.05714289,170.69,170.58,20.0]
[1721893512322,8.05714289,170.69,170.59,45.0]
[1721893512524,6.5921,170.69,170.59,45.0]
[1721893513363,6.5921,170.69,170.6,20.0]
[1721893513521,6.5921,170.69,170.61,45.0]
[1721893515449,1.46472985,170.68,170.59,33.44]
[1721893515650,6.5921,170.69,170.6,65.0]
[1721893515843,6.5921,170.69,170.61,1.17178225]
[1721893516943,6.5921,170.69,170.62,20.0]
[1721893517254,6.5921,170.69,170.63,45.0]
[1721893518144,6.5921,170.69,170.59,33.44]
[1721893519542,6.5921,170.69,170.6,45.0]
[1721893519739,6.5921,170.69,170.62,20.0]
[1721893520068,22.5802,170.73,170.63,45.0]
[1721893520359,22.5802,170.73,170.63,46.17169316]
[1721893520743,22.5802,170.73,170.63,45.0]
[1721893521234,6.614,170.73,170.63,45.0]
[1721893524766,6.614,170.73,170.63,46.17169975]
[1721893525975,6.614,170.73,170.65,20.0]
[1721893526146,6.614,170.73,170.66,45.0]
[1721893530075,6.614,170.73,170.67,1.17144088]
[1721893530380,6.614,170.73,170.66,45.0]
[1721893531363,6.614,170.73,170.67,20.0]
[1721893531557,43.06530738,170.8,170.68,45.0]
[1721893531761,43.06530738,170.8,170.69,20.0]
[1721893531762,6.461,170.8,170.69,20.0]
[1721893532054,6.461,170.8,170.71,20.0]
[1721893532562,6.461,170.8,170.71,21.17114012]
[1721893532756,6.461,170.8,170.7,29.67]
[1721893533071,1.46406009,170.79,170.66,29.67]
[1721893533377,1.46406009,170.79,170.67,1.17153048]
[1721893533689,1.4644175,170.79,170.66,49.67]
[1721893533859,21.4644175,170.79,170.68,20.0]
[1721893534363,21.4644175,170.79,170.66,50.84132422]
[1721893534670,21.4644175,170.79,170.67,45.0]
[1721893535071,21.4644175,170.79,170.68,20.0]
[1721893535266,1.4644175,170.79,170.69,74.67]
[1721893535459,7.92510618,170.8,170.69,74.67]
[1721893536879,6.461,170.8,170.69,74.67]
[1721893537067,6.461,170.8,170.7,21.17129071]
[1721893537261,6.461,170.8,170.71,45.0]
[1721893541488,6.461,170.8,170.72,20.0]
[1721893541987,6.461,170.8,170.72,49.67]
[1721893542588,6.461,170.8,170.73,45.0]
[1721893544283,6.461,170.8,170.69,30.84101778]
[1721893544466,6.461,170.8,170.7,45.0]
[1721893544858,6.461,170.8,170.71,15.8929]
[1721893545169,6.461,170.8,170.72,94.67]
[1721893545590,6.461,170.8,170.72,74.67]
[1721893545769,6.461,170.8,170.69,1.17105059]
[1721893545770,15.5227,170.78,170.69,29.67]
[1721893545965,15.5227,170.78,170.7,45.0]
[1721893547164,15.5227,170.78,170.69,29.67]
[1721893548790,1.46422111,170.77,170.69,29.67]
[1721893548988,35.14,170.76,170.69,29.67]
[1721893549167,5.8577,170.72,170.63,20.0]
[1721893549371,1.46461393,170.71,170.61,20.0]
[1721893549584,1.46468201,170.73,170.61,20.0]
[1721893550677,6.4173,170.74,170.64,20.0]
[1721893550888,6.4173,170.74,170.66,49.67]
[1721893551085,6.4173,170.74,170.67,45.0]
[1721893554188,6.4173,170.74,170.61,7.33852884]
[1721893554189,17.35550672,170.73,170.61,7.33852884]
[1721893554397,17.35550672,170.73,170.62,49.67]
[1721893554578,17.35585457,170.73,170.62,29.67]
[1721893555597,17.35585457,170.73,170.63,45.0]
[1721893556793,40.9978,170.72,170.62,29.67]
[1721893556967,36.6048878,170.72,170.62,29.67]
[1721893557172,6.1819,170.71,170.62,29.67]
[1721893557378,1.46494557,170.7,170.62,29.67]
[1721893558399,6.1819,170.71,170.62,29.67]
[1721893559598,6.1819,170.71,170.63,45.0]
[1721893559798,6.1819,170.71,170.62,29.67]
[1721893559974,1.46478839,170.7,170.62,29.67]
[1721893560686,42.78684719,170.71,170.59,35.73673986]
[1721893560882,1.46505138,170.7,170.6,45.0]
[1721893561279,1.46505138,170.7,170.59,29.67]
[1721893561484,21.46505138,170.7,170.59,29.67]
[1721893563276,21.46505138,170.7,170.6,45.0]
[1721893563975,6.1819,170.71,170.62,49.67]
[1721893564180,6.1819,170.71,170.63,45.0]
[1721893564990,1.46466767,170.7,170.62,29.67]
[1721893565391,1.46469291,170.7,170.62,29.67]
[1721893565608,6.1819,170.71,170.59,49.67]
[1721893565899,1.46484066,170.7,170.59,29.67]
[1721893566808,1.46484066,170.7,170.6,45.0]
[1721893567407,27.32334066,170.7,170.6,45.0]
[1721893567605,21.46484066,170.7,170.6,45.0]
[1721893568413,1.46484066,170.7,170.6,45.0]
[1721893568593,21.46484066,170.7,170.56,50.84205436]
[1721893568906,21.46484066,170.7,170.58,20.0]
[1721893569088,21.46484066,170.7,170.59,74.67]
[1721893569906,21.46484066,170.7,170.59,75.84197075]
[1721893569907,20.0,170.7,170.59,75.84197075]
[1721893571087,21.46496526,170.7,170.59,74.67]
[1721893571289,7.64686424,170.71,170.6,20.0]
[1721893571593,6.1819,170.71,170.62,29.67]
[1721893571795,6.1819,170.71,170.63,65.0]
[1721893572307,6.1819,170.71,170.63,45.0]
[1721893572685,6.1819,170.71,170.62,29.67]
[1721893572889,6.1819,170.71,170.63,65.0]
[1721893573406,6.1819,170.71,170.62,29.67]
[1721893573608,21.46485905,170.7,170.59,29.67]
[1721893573907,21.46485905,170.7,170.6,45.0]
[1721893574602,56.60485905,170.7,170.58,6.06704945]
[1721893574909,56.60485905,170.7,170.56,20.0]
[1721893575210,5.8586,170.69,170.57,6.07005388]
[1721893575386,21.46515355,170.68,170.57,6.07005388]
[1721893575586,22.363,170.66,170.55,50.68963363]
[1721893575791,1.46515344,170.65,170.55,30.68963363]
[1721893575993,1.46515344,170.65,170.55,36.76035231]
[1721893576811,1.46515344,170.65,170.56,45.0]
[1721893579714,23.82820613,170.66,170.56,45.0]
[1721893579929,22.363,170.66,170.56,45.0]
[1721893581294,1.46520684,170.65,170.56,45.0]
[1721893581512,1.46520596,170.64,170.56,45.0]
[1721893582708,1.46526499,170.65,170.56,45.0]
[1721893583014,1.46535933,170.64,170.56,45.0]
[1721893583521,1.46535933,170.64,170.55,29.67]
[1721893584102,6.3674,170.63,170.53,6.06939873]
[1721893584308,1.46552917,170.62,170.53,6.06939873]
[1721893584811,1.46552917,170.62,170.54,45.0]
[1721893586908,1.46552917,170.62,170.52,30.69012964]
[1721893587210,1.46552917,170.62,170.53,45.0]
[1721893587722,7.832994,170.63,170.53,45.0]
[1721893588113,6.3674,170.63,170.53,45.0]
[1721893589822,1.4654986,170.62,170.53,45.0]
[1721893591021,7.83293257,170.63,170.53,45.0]
[1721893591530,13.69373257,170.63,170.53,45.0]
[1721893592330,7.83293257,170.63,170.53,45.0]
[1721893593128,6.3674,170.63,170.53,45.0]
[1721893593632,6.3674,170.63,170.52,74.67]
[1721893594533,6.3674,170.63,170.52,75.8424035]
[1721893595541,6.3674,170.63,170.52,74.67]
[1721893597208,6.3674,170.63,170.52,75.84241081]
[1721893598440,6.3674,170.63,170.58,14.87]
[1721893600548,6.3674,170.63,170.61,14.87]
[1721893602226,6.3674,170.63,170.55,29.72]
[1721893602532,7.83268813,170.63,170.56,45.0]
[1721893602836,20.0,170.62,170.52,29.72]
[1721893603638,20.0,170.62,170.52,30.89240181]
[1721893603932,20.0,170.62,170.53,45.0]
[1721893604239,6.3674,170.63,170.55,29.72]
[1721893604442,6.3674,170.63,170.56,45.0]
[1721893610431,6.3674,170.63,170.58,29.72]
[1721893610646,6.3674,170.63,170.59,45.0]
[1721893613723,43.3935945,170.62,170.52,6.10476866]
[1721893614135,43.3935945,170.62,170.49,29.72]
[1721893614321,43.3935945,170.62,170.49,30.74041118]
[1721893614524,43.3935945,170.62,170.49,31.91292581]
[1721893614723,49.2547945,170.62,170.49,37.77822581]
[1721893615244,47.7897,170.62,170.5,25.865]
[1721893615418,41.9285,170.62,170.52,49.72]
[1721893615621,41.9285,170.62,170.52,50.89231491]
[1721893615943,41.9285,170.62,170.53,45.0]
[1721893617726,1.46541276,170.61,170.52,29.72]
[1721893617932,1.46564421,170.6,170.52,29.72]
[1721893618532,5.8613,170.61,170.52,29.72]
[1721893618741,5.8613,170.61,170.49,2.19292661]
[1721893618742,20.0,170.6,170.49,31.91292661]
[1721893620342,20.0,170.6,170.5,45.0]
[1721893620835,20.0,170.61,170.5,70.865]
[1721893621942,20.0,170.61,170.52,49.72]
[1721893622245,20.0,170.61,170.53,45.0]
[1721893622743,20.0,170.61,170.52,50.89234872]
[1721893622927,20.0,170.61,170.52,29.72]
[1721893623244,1.46548958,170.6,170.49,30.74041118]
[1721893623438,5.8621,170.59,170.49,30.74041118]
[1721893623646,7.32718958,170.6,170.49,1.02041118]
[1721893623850,20.0,170.59,170.49,1.02041118]
[1721893624035,20.0,170.61,170.5,20.0]
[1721893625224,20.0,170.61,170.52,20.0]
[1721893625437,20.0,170.61,170.53,45.0]
[1721893627427,21.9285,170.62,170.53,45.0]
[1721893628451,42.6595,170.62,170.56,14.87]
[1721893628623,20.732,170.59,170.49,1.02041118]
[1721893628826,14.87,170.6,170.55,14.87]
[1721893629063,36.7985,170.62,170.56,14.87]
[1721893629357,20.0,170.61,170.56,14.87]
[1721893629738,20.0,170.61,170.52,1.17245251]
[1721893630055,20.0,170.61,170.58,14.87]
[1721893630231,21.9285,170.62,170.58,14.87]
[1721893631347,21.9285,170.62,170.52,46.17245251]
[1721893631530,36.7985,170.62,170.52,46.17244669]
[1721893631729,36.7985,170.62,170.57,14.87]
[1721893631954,36.7985,170.62,170.56,14.87]
[1721893633551,42.6596,170.62,170.56,14.87]
[1721893634449,42.6596,170.62,170.5,1.17238144]
[1721893634450,14.87,170.61,170.55,14.87]
[1721893635648,42.6596,170.62,170.56,14.87]
[1721893635835,20.0,170.61,170.56,14.87]
[1721893637253,34.87,170.61,170.55,14.87]
[1721893637450,40.7316,170.61,170.49,22.19293932]
[1721893637759,16.33579899,170.6,170.54,14.87]
[1721893638357,16.33579899,170.6,170.49,1.02041118]
[1721893638527,16.33579899,170.6,170.54,14.87]
[1721893638840,14.87,170.6,170.55,14.87]
[1721893639236,34.87,170.61,170.55,14.87]
[1721893640249,34.87,170.61,170.56,14.87]
[1721893640623,20.0,170.61,170.56,14.87]
[1721893641955,21.9285,170.62,170.59,14.87]
[1721893642263,21.9285,170.62,170.6,14.87]
[1721893643258,21.9285,170.62,170.56,1.17225825]
[1721893643259,21.9285,170.62,170.59,14.87]
[1721893643461,21.9285,170.62,170.58,14.87]
[1721893644679,36.7985,170.62,170.56,14.87]
[1721893644856,14.87,170.59,170.49,1.01992752]
[1721893645054,1.46585176,170.58,170.53,14.87]
[1721893645479,14.87,170.59,170.54,14.87]
[1721893645480,1.46584426,170.59,170.54,14.87]
[1721893645656,21.46584426,170.59,170.54,14.87]
[1721893646052,20.0,170.59,170.55,14.87]
[1721893646273,20.0,170.6,170.56,14.87]
[1721893646780,21.9285,170.62,170.58,14.87]
[1721893646990,20.0,170.61,170.58,14.87]
[1721893647281,21.9285,170.62,170.58,14.87]
[1721893647671,21.9285,170.62,170.49,26.10360896]
[1721893647672,23.39389637,170.62,170.57,14.87]
[1721893647874,38.26389637,170.62,170.57,14.87]
[1721893648178,38.2641305,170.62,170.56,14.87]
[1721893648378,36.7985,170.62,170.57,14.87]
[1721893648673,21.9285,170.62,170.57,14.87]
[1721893648865,6.0181,170.62,170.61,14.87]
[1721893650287,6.0181,170.62,170.55,29.72]
[1721893650970,6.0181,170.62,170.55,30.89224]
[1721893651280,6.0181,170.62,170.55,29.72]
[1721893651480,6.0181,170.62,170.55,30.89223913]
[1721893652375,21.5082,170.66,170.56,45.0]
[1721893652565,21.5082,170.66,170.57,1.1721903]
[1721893652879,25.86,170.65,170.55,29.72]
[1721893653379,20.0,170.65,170.56,1.1723032]
[1721893653799,20.0,170.65,170.57,1.1722143]
[1721893654867,21.5082,170.66,170.57,1.1722143]
[1721893655688,21.5082,170.66,170.58,1.17219806]
[1721893656587,21.5082,170.66,170.56,66.17217814]
[1721893657991,21.5082,170.66,170.56,56.17217814]
[1721893658283,6.1849,170.66,170.58,49.72]
[1721893658471,6.1849,170.66,170.59,1.17192316]
[1721893660292,6.1849,170.66,170.59,46.17192316]
[1721893660690,6.1849,170.66,170.59,1.17195516]
[1721893661969,6.1849,170.66,170.6,20.0]
[1721893662183,22.3316,170.7,170.6,20.0]
[1721893662389,22.3316,170.7,170.61,1.1718087]
[1721893663594,22.3316,170.7,170.6,20.0]
[1721893663595,22.3316,170.7,170.6,21.17180983]
[1721893663799,22.3316,170.7,170.61,1.17181116]
[1721893664192,22.3316,170.7,170.61,30.89181116]
[1721893664375,22.3316,170.7,170.62,20.0]
[1721893666312,22.3316,170.7,170.61,30.89181116]
[1721893666474,22.3316,170.7,170.61,29.72]
[1721893668401,22.3316,170.7,170.58,1.17175802]
[1721893668402,42.5636894,170.69,170.58,29.72]
[1721893668710,50.8589,170.68,170.56,6.93159995]
[1721893668905,1.46523096,170.67,170.56,6.93159995]
[1721893669484,6.6086,170.66,170.55,52.17102132]
[1721893669709,8.07385597,170.66,170.55,52.17102132]
[1721893670213,22.93385597,170.66,170.6,14.86]
[1721893670597,21.4686,170.66,170.61,14.86]
[1721893670989,6.6086,170.66,170.61,14.86]
[1721893671597,1.46525602,170.65,170.61,14.86]
[1721893672112,8.07385594,170.66,170.61,14.86]
[1721893672317,8.07385594,170.66,170.62,14.86]
[1721893672520,6.6086,170.66,170.63,14.86]
[1721893673309,6.6086,170.66,170.64,14.86]
[1721893674100,6.6086,170.66,170.63,14.86]
[1721893674301,6.6086,170.66,170.64,14.86]
[1721893675118,6.6086,170.66,170.63,14.86]
[1721893678327,21.4686,170.66,170.6,14.86]
[1721893678631,6.6086,170.66,170.62,14.86]
[1721893679037,6.6086,170.66,170.55,23.62478991]
[1721893679326,6.6086,170.66,170.61,14.86]
[1721893680823,21.4686,170.66,170.61,14.86]
[1721893681231,6.6086,170.66,170.64,14.86]
[1721893681420,6.6086,170.66,170.65,14.86]
[1721893681625,6.6086,170.66,170.64,14.86]
[1721893685439,6.6086,170.66,170.62,14.86]
[1721893685641,6.6086,170.66,170.61,14.86]
[1721893687630,6.6086,170.66,170.62,14.86]
[1721893687942,6.6086,170.66,170.63,14.86]
[1721893688739,6.6086,170.66,170.64,14.86]
[1721893690035,6.6086,170.66,170.65,14.86]
[1721893690546,22.557,170.7,170.65,14.86]
[1721893690724,22.557,170.7,170.67,14.86]
[1721893692128,6.5788,170.7,170.69,14.86]
[1721893692334,15.2161,170.74,170.69,14.86]
[1721893692335,21.7774,170.74,170.69,14.86]
[1721893692533,21.7774,170.74,170.7,14.86]
[1721893692926,23.24193496,170.74,170.7,14.86]
[1721893693125,23.24193496,170.74,170.69,14.86]
[1721893693934,23.24193496,170.74,170.62,17.28152879]
[1721893694135,23.24193496,170.74,170.69,14.86]
[1721893697545,1.4645373,170.73,170.7,14.86]
[1721893698553,6.5613,170.74,170.72,14.86]
[1721893700846,6.5613,170.74,170.71,14.86]
[1721893705149,6.5613,170.74,170.72,14.86]
[1721893705539,22.5351,170.78,170.73,14.86]
[1721893706041,22.5351,170.78,170.75,14.86]
[1721893706245,6.3679,170.78,170.75,14.86]
[1721893706448,6.3679,170.78,170.76,14.86]
[1721893706653,38.80709015,170.82,170.77,14.86]
[1721893706828,38.80709015,170.82,170.76,14.86]
[1721893707166,37.3431,170.82,170.76,14.86]
[1721893707454,38.80701873,170.82,170.76,14.86]
[1721893707761,38.80702808,170.82,170.69,16.4351]
[1721893707941,20.7145,170.81,170.75,14.86]
[1721893708139,1.46409557,170.8,170.75,14.86]
[1721893708645,16.32409557,170.8,170.75,14.86]
[1721893709039,16.32409514,170.81,170.76,14.86]
[1721893709553,1.46409514,170.81,170.76,14.86]
[1721893709955,72.5831,170.82,170.76,14.86]
[1721893710453,74.04706688,170.82,170.76,14.86]
[1721893711250,74.04706688,170.82,170.69,39.98323315]
[1721893711454,74.04706688,170.82,170.76,14.86]
[1721893711629,23.94706688,170.82,170.76,14.86]
[1721893711833,38.80706688,170.82,170.76,14.86]
[1721893712860,23.94706688,170.82,170.77,14.86]
[1721893713561,22.4831,170.82,170.77,14.86]
[1721893714239,23.94704343,170.82,170.77,14.86]
[1721893714561,22.4831,170.82,170.77,14.86]
[1721893714741,22.4831,170.82,170.78,14.86]
[1721893716052,23.94691318,170.82,170.78,14.86]
[1721893716433,22.4831,170.82,170.78,14.86]
[1721893716757,6.0398,170.86,170.81,14.86]
[1721893717066,6.0398,170.86,170.76,15.2185]
[1721893717067,6.0398,170.86,170.83,14.86]
[1721893717362,6.0398,170.86,170.81,14.86]
[1721893717742,1.46352631,170.85,170.81,14.86]
[1721893717942,6.0398,170.86,170.8,14.86]
[1721893718142,1.46362515,170.85,170.8,14.86]
[1721893718339,1.46362515,170.85,170.81,14.86]
[1721893718543,1.46362515,170.85,170.8,14.86]
[1721893719049,14.86,170.84,170.76,15.2185]
[1721893719249,22.17702515,170.85,170.79,14.86]
[1721893719453,14.86,170.85,170.79,14.86]
[1721893719650,14.86,170.85,170.8,14.86]
[1721893719852,56.1398,170.86,170.8,14.86]
[1721893720054,45.0,170.85,170.8,14.86]
[1721893721175,45.0,170.85,170.76,15.2185]
[1721893721385,14.86,170.84,170.78,14.86]
[1721893721679,1.46381597,170.83,170.78,14.86]
[1721893722743,1.46381597,170.83,170.79,14.86]
[1721893722948,16.32379896,170.84,170.79,14.86]
[1721893723275,1.46379896,170.85,170.8,14.86]
[1721893723461,20.8998,170.86,170.81,14.86]
[1721893723768,6.0398,170.86,170.81,14.86]
[1721893724276,1.4635086,170.85,170.73,59.44]
[1721893724460,20.8998,170.86,170.8,14.86]
[1721893724660,20.8998,170.86,170.73,59.44]
[1721893724661,14.86,170.83,170.73,59.44]
[1721893724862,14.86,170.83,170.78,14.86]
[1721893726077,35.24,170.85,170.78,14.86]
[1721893726378,21.46392354,170.84,170.79,14.86]
[1721893730574,21.46392354,170.84,170.8,14.86]
[1721893730878,1.46392354,170.84,170.8,14.86]
[1721893731081,20.0,170.85,170.8,14.86]
[1721893731675,21.46374404,170.85,170.8,14.86]
[1721893733386,71.56374404,170.85,170.73,59.44]
[1721893733586,45.0,170.84,170.79,14.86]
[1721893733763,71.56374404,170.85,170.8,14.86]
[1721893734562,56.70374404,170.85,170.8,14.86]
[1721893734876,20.0,170.85,170.81,14.86]
[1721893735482,21.46362844,170.85,170.81,14.86]
[1721893736284,21.46362844,170.85,170.8,14.86]
[1721893738661,21.46362844,170.85,170.81,14.86]
[1721893738869,34.86,170.85,170.8,14.86]
[1721893739284,36.32367522,170.85,170.8,14.86]
[1721893740287,36.32367522,170.85,170.79,14.86]
[1721893741365,55.9533,170.85,170.79,14.86]
[1721893741686,45.0,170.84,170.78,14.86]
[1721893741885,45.0,170.84,170.79,14.86]
[1721893742978,1.46372232,170.83,170.79,14.86]
[1721893743687,1.46372232,170.83,170.78,14.86]
[1721893744166,1.46379415,170.84,170.78,14.86]
[1721893744369,16.32379415,170.84,170.78,14.86]
[1721893744882,14.86,170.82,170.71,35.40946892]
[1721893745083,1.46403936,170.81,170.75,14.86]
[1721893745273,14.86,170.81,170.75,14.86]
[1721893745473,14.86,170.82,170.76,14.86]
[1721893745689,16.32401601,170.83,170.77,14.86]
[1721893745886,1.46384603,170.82,170.77,14.86]
[1721893746490,14.86,170.83,170.77,14.86]
[1721893746991,1.46384737,170.82,170.77,14.86]
[1721893747380,16.32384737,170.83,170.77,14.86]
[1721893748499,1.46384575,170.84,170.79,14.86]
[1721893748788,20.8998,170.86,170.8,14.86]
[1721893749682,6.0398,170.86,170.81,14.86]
[1721893749986,31.409,170.88,170.82,14.86]
[1721893751087,6.4976,170.9,170.86,14.86]
[1721893751273,6.4976,170.9,170.79,21.1705264]
[1721893751274,6.4976,170.9,170.85,14.86]
[1721893751888,14.86,170.88,170.82,14.86]
[1721893752093,14.86,170.87,170.81,14.86]
[1721893752388,14.86,170.87,170.78,15.0161]
[1721893752598,14.86,170.85,170.79,14.86]
[1721893752771,14.86,170.85,170.8,14.86]
[1721893752972,1.46355113,170.89,170.8,14.86]
[1721893753189,14.86,170.87,170.81,14.86]
[1721893753569,1.46344444,170.86,170.81,14.86]
[1721893753771,14.86,170.85,170.8,14.86]
[1721893753968,14.86,170.86,170.8,14.86]
[1721893754389,14.86,170.87,170.81,14.86]
[1721893755211,14.86,170.87,170.82,14.86]
[1721893755407,1.46347439,170.86,170.81,14.86]
[1721893755795,70.8517,170.89,170.81,14.86]
[1721893755796,14.86,170.87,170.81,14.86]
[1721893755995,16.32345295,170.87,170.81,14.86]
[1721893756399,14.86,170.86,170.8,14.86]
[1721893756599,14.86,170.87,170.81,14.86]
[1721893756806,65.0,170.89,170.82,14.86]
[1721893757109,14.86,170.87,170.82,14.86]
[1721893761717,14.86,170.88,170.83,14.86]
[1721893763319,14.86,170.86,170.78,15.0161]
[1721893763509,14.86,170.86,170.8,14.86]
[1721893763706,16.32360792,170.86,170.8,14.86]
[1721893764011,14.86,170.86,170.8,14.86]
[1721893764927,16.32361007,170.86,170.8,14.86]
[1721893765319,14.86,170.86,170.8,14.86]
[1721893765527,7.3157101,170.88,170.8,14.86]
[1721893765733,1.4636101,170.88,170.82,14.86]
[1721893766026,14.86,170.86,170.78,15.0161]
[1721893766206,14.86,170.86,170.8,14.86]
[1721893766419,14.86,170.86,170.81,14.86]
[1721893767031,14.86,170.86,170.78,15.0161]
[1721893767032,14.86,170.86,170.8,14.86]
[1721893768724,1.46349613,170.88,170.8,14.86]
[1721893768929,1.46349613,170.88,170.75,15.5372]
[1721893769135,14.86,170.84,170.79,14.86]
[1721893769328,1.4637154,170.83,170.79,14.86]
[1721893769706,16.3237154,170.83,170.78,14.86]
[1721893771128,1.4637154,170.83,170.78,14.86]
[1721893771330,6.542,170.82,170.73,13.37156895]
[1721893771529,16.32397378,170.81,170.73,6.10774678]
[1721893771733,14.86,170.8,170.75,14.86]
[1721893771924,1.46397342,170.79,170.75,14.86]
[1721893772942,1.46398106,170.8,170.75,14.86]
[1721893773151,1.46398142,170.79,170.75,14.86]
[1721893773825,16.32397397,170.81,170.75,14.86]
[1721893774723,14.86,170.79,170.71,1.01556353]
[1721893774935,1.46412644,170.78,170.74,14.86]
[1721893775648,1.46412644,170.78,170.71,1.01556353]
[1721893775649,16.32412644,170.78,170.71,1.01556353]
[1721893775823,16.32412644,170.78,170.73,14.86]
[1721893776024,1.46422473,170.77,170.73,14.86]
[1721893776326,1.46420614,170.76,170.73,14.86]
[1721893776654,16.32420108,170.78,170.73,14.86]
[1721893776839,21.4742,170.77,170.68,14.55560868]
[1721893777042,1.46439017,170.76,170.72,14.86]
[1721893779837,1.46439017,170.76,170.64,34.88464847]
[1721893780167,14.86,170.74,170.69,14.86]
[1721893780367,1.46455117,170.73,170.69,14.86]
[1721893780736,1.4645509,170.76,170.7,14.86]
[1721893780940,6.6142,170.77,170.7,14.86]
[1721893781145,16.32447283,170.76,170.7,14.86]
[1721893781326,16.32447283,170.76,170.64,89.02613478]
[1721893781531,16.32447283,170.76,170.7,14.86]
[1721893782063,1.46451194,170.81,170.74,14.86]
[1721893782277,6.1144,170.82,170.76,14.86]
[1721893782454,20.9744,170.82,170.77,14.86]
[1721893782641,6.1144,170.82,170.78,14.86]
[1721893782841,6.1144,170.82,170.73,59.44]
[1721893783039,22.43840644,170.82,170.76,14.86]
[1721893783360,22.43840644,170.82,170.77,14.86]
[1721893783749,22.0566,170.87,170.79,14.86]
[1721893783955,14.86,170.85,170.79,14.86]
[1721893784143,16.32373176,170.85,170.79,14.86]
[1721893784561,14.86,170.84,170.79,14.86]
[1721893784759,14.86,170.84,170.79,13.2249]
[1721893784962,1.4637517,170.83,170.79,13.2249]
[1721893785853,1.4637517,170.83,170.73,59.44]
[1721893785854,7.3176517,170.83,170.71,37.28502165]
[1721893786045,14.86,170.81,170.76,14.86]
[1721893786744,22.86167527,170.82,170.76,14.86]
[1721893787061,22.86167527,170.82,170.77,14.86]
[1721893787452,8.00167527,170.82,170.77,14.86]
[1721893789069,22.86167527,170.82,170.77,14.86]
[1721893789376,59.86,170.81,170.75,14.86]
[1721893789667,16.32411925,170.8,170.75,14.86]
[1721893790369,14.86,170.78,170.7,7.26382217]
[1721893790536,14.86,170.76,170.7,14.86]
[1721893790740,1.46451529,170.75,170.7,14.86]
[1721893791342,14.86,170.74,170.69,14.86]
[1721893791549,1.4646664,170.73,170.68,14.86]
[1721893792561,1.4646664,170.73,170.69,14.86]
[1721893794069,21.4577,170.75,170.69,14.86]
[1721893794670,6.5977,170.75,170.7,14.86]
[1721893795057,21.4577,170.75,170.7,14.86]
[1721893795648,16.32454531,170.74,170.69,14.86]
[1721893796552,14.86,170.74,170.69,14.86]
[1721893796752,21.4577,170.75,170.69,14.86]
[1721893798659,22.9222466,170.75,170.7,14.86]
[1721893799173,22.9222466,170.75,170.69,14.86]
[1721893799760,21.4577,170.75,170.69,14.86]
[1721893800078,1.46454443,170.74,170.69,14.86]
[1721893800266,21.4577,170.75,170.69,14.86]
[1721893800456,21.4577,170.75,170.7,14.86]
[1721893801057,21.4577,170.75,170.69,14.86]
[1721893801560,16.32454988,170.74,170.64,74.71813341]
[1721893801879,45.0,170.73,170.69,14.86]
[1721893803466,61.32466878,170.73,170.68,14.86]
[1721893803668,61.32466878,170.73,170.64,15.27813341]